[Event "Polofinale MCR junioru 2023"]
[Site "Czech Republic"]
[Date "2023.11.13"]
[Round "3.11"]
[White "Pecka, Jan"]
[Black "Hlavina, Matous"]
[Result "1-0"]
[TimeControl "90 min per 40 moves + 15 min + 30 sec / move from move 1"]
[WhiteFideId "23712520"]
[BlackFideId "386650"]
[WhiteElo "1999"]
[BlackElo "2134"]

1. e4 {[%clk 01:29:03]} {[%emt 00:01:56]} c5 {[%clk 01:30:55]} {[%emt
00:00:05]} 2. Nf3 {[%clk 01:29:27]} {[%emt 00:00:06]} g6 {[%clk 01:31:19]}
{[%emt 00:00:04]} 3. c3 {[%clk 01:29:46]} {[%emt 00:00:14]} d5 {[%clk
01:31:43]} {[%emt 00:00:05]} 4. exd5 {[%clk 01:28:56]} {[%emt 00:01:21]} Qxd5
{[%clk 01:32:07]} {[%emt 00:00:06]} 5. d4 {[%clk 01:29:17]} {[%emt 00:00:08]}
Bg7 {[%clk 01:32:33]} {[%emt 00:00:04]} 6. Be3 {[%clk 01:28:30]} {[%emt
00:01:17]} cxd4 {[%clk 01:32:35]} {[%emt 00:00:29]} 7. cxd4 {[%clk 01:28:53]}
{[%emt 00:00:06]} Nf6 {[%clk 01:32:41]} {[%emt 00:00:25]} 8. Nc3 {[%clk
01:29:15]} {[%emt 00:00:08]} Qd8 {[%clk 01:32:49]} {[%emt 00:00:21]} 9. Bc4
{[%clk 01:28:51]} {[%emt 00:00:54]} O-O {[%clk 01:33:07]} {[%emt 00:00:13]} 10.
O-O {[%clk 01:28:04]} {[%emt 00:01:16]} Nbd7 {[%clk 01:31:31]} {[%emt
00:02:07]} 11. Bb3 {[%clk 01:23:06]} {[%emt 00:05:28]} Nb6 {[%clk 01:30:50]}
{[%emt 00:01:11]} 12. Re1 {[%clk 01:21:05]} {[%emt 00:02:29]} Nbd5 {[%clk
01:21:22]} {[%emt 00:09:59]} 13. Ne5 {[%clk 01:15:42]} {[%emt 00:05:53]} Nxe3
{[%clk 01:06:41]} {[%emt 00:15:10]} 14. fxe3 {[%clk 01:07:01]} {[%emt
00:09:13]} Nd7 {[%clk 01:03:00]} {[%emt 00:04:11]} 15. Nd3 {[%clk 01:02:22]}
{[%emt 00:05:08]} e6 {[%clk 00:56:41]} {[%emt 00:06:50]} 16. Ne4 {[%clk
00:58:00]} {[%emt 00:04:51]} Nf6 {[%clk 00:50:50]} {[%emt 00:06:21]} 17. Nxf6+
{[%clk 00:56:53]} {[%emt 00:01:37]} Qxf6 {[%clk 00:50:45]} {[%emt 00:00:35]} 18.
Rc1 {[%clk 00:52:18]} {[%emt 00:05:05]} Qg5 {[%clk 00:48:41]} {[%emt 00:02:34]}
19. Rc7 {[%clk 00:49:00]} {[%emt 00:03:48]} Bf6 {[%clk 00:42:28]} {[%emt
00:06:44]} 20. Qf3 {[%clk 00:43:11]} {[%emt 00:06:18]} Bd8 {[%clk 00:39:44]}
{[%emt 00:03:14]} 21. Rc5 {[%clk 00:39:21]} {[%emt 00:04:21]} Qf6 {[%clk
00:33:40]} {[%emt 00:06:34]} 22. Rec1 {[%clk 00:38:01]} {[%emt 00:01:50]} Qxf3
{[%clk 00:32:16]} {[%emt 00:01:54]} 23. gxf3 {[%clk 00:38:26]} {[%emt
00:00:04]} Be7 {[%clk 00:32:32]} {[%emt 00:00:14]} 24. R5c2 {[%clk 00:37:47]}
{[%emt 00:01:10]} Kg7 {[%clk 00:30:17]} {[%emt 00:02:44]} 25. Kf2 {[%clk
00:33:48]} {[%emt 00:04:30]} Bd6 {[%clk 00:28:52]} {[%emt 00:01:55]} 26. f4
{[%clk 00:31:41]} {[%emt 00:02:37]} f6 {[%clk 00:28:19]} {[%emt 00:01:04]} 27.
Nc5 {[%clk 00:30:04]} {[%emt 00:02:07]} Kf7 {[%clk 00:17:34]} {[%emt 00:11:14]}
28. Ne4 {[%clk 00:27:48]} {[%emt 00:02:46]} Be7 {[%clk 00:13:48]} {[%emt
00:04:17]} 29. Rc7 {[%clk 00:20:45]} {[%emt 00:07:33]} Rd8 {[%clk 00:14:11]}
{[%emt 00:00:07]} 30. h4 {[%clk 00:20:23]} {[%emt 00:00:51]} h5 {[%clk
00:12:19]} {[%emt 00:02:22]} 31. f5 {[%clk 00:18:03]} {[%emt 00:02:51]} gxf5
{[%clk 00:10:15]} {[%emt 00:02:34]} 32. Ng3 {[%clk 00:18:12]} {[%emt 00:00:20]}
Bd7 {[%clk 00:05:59]} {[%emt 00:04:47]} 33. Nxf5 {[%clk 00:13:55]} {[%emt
00:04:47]} Rab8 {[%clk 00:03:56]} {[%emt 00:02:33]} 34. Rg1 {[%clk 00:10:55]}
{[%emt 00:03:29]} Bf8 {[%clk 00:03:01]} {[%emt 00:01:27]} 35. Ng3 {[%clk
00:07:34]} {[%emt 00:03:50]} Bd6 {[%clk 00:03:01]} {[%emt 00:00:30]} 36. Rcc1
{[%clk 00:07:33]} {[%emt 00:00:31]} Bxg3+ {[%clk 00:01:24]} {[%emt 00:02:07]}
37. Rxg3 {[%clk 00:07:57]} {[%emt 00:00:05]} Ke7 {[%clk 00:01:15]} {[%emt
00:00:40]} 38. Rc5 {[%clk 00:07:17]} {[%emt 00:01:10]} Rh8 {[%clk 00:01:13]}
{[%emt 00:00:32]} 39. Bd1 {[%clk 00:04:33]} {[%emt 00:03:13]} b6 {[%clk
00:01:17]} {[%emt 00:00:27]} 40. Rc7 {[%clk 00:04:08]} {[%emt 00:00:55]} Kd6
{[%clk 00:01:41]} {[%emt 00:00:06]} 41. Rxa7 {[%clk 00:04:34]} {[%emt
00:00:04]} Ra8 {[%clk 00:01:49]} {[%emt 00:00:22]} 42. Rxa8 {[%clk 00:04:26]}
{[%emt 00:00:38]} Rxa8 {[%clk 00:02:10]} {[%emt 00:00:09]} 43. a3 {[%clk
00:04:44]} {[%emt 00:00:11]} Rc8 {[%clk 00:01:23]} {[%emt 00:01:17]} 44. Rg6
{[%clk 00:04:53]} {[%emt 00:00:22]} Rc1 {[%clk 00:15:32]} {[%emt 00:01:51]} 45.
Ke2 {[%clk 00:20:18]} {[%emt 00:01:05]} Rb1 {[%clk 00:15:19]} {[%emt 00:00:44]}
46. b3 {[%clk 00:20:44]} {[%emt 00:00:04]} Rb2+ {[%clk 00:14:48]} {[%emt
00:01:00]} 47. Kd3 {[%clk 00:20:44]} {[%emt 00:00:30]} Rh2 {[%clk 00:14:20]}
{[%emt 00:00:58]} 48. Rxf6 {[%clk 00:20:29]} {[%emt 00:00:46]} Rxh4 {[%clk
00:14:40]} {[%emt 00:00:09]} 49. Rh6 {[%clk 00:20:35]} {[%emt 00:00:24]} Rh1
{[%clk 00:13:49]} {[%emt 00:01:21]} 50. Bf3 {[%clk 00:20:18]} {[%emt 00:00:46]}
Rh3 {[%clk 00:13:55]} {[%emt 00:00:22]} 51. Be4 {[%clk 00:18:05]} {[%emt
00:02:46]} Bb5+ {[%clk 00:12:42]} {[%emt 00:01:43]} 52. Kd2 {[%clk 00:16:52]}
{[%emt 00:01:42]} Rh2+ {[%clk 00:12:39]} {[%emt 00:00:33]} 53. Kc3 {[%clk
00:17:13]} {[%emt 00:00:09]} Bd7 {[%clk 00:10:42]} {[%emt 00:02:27]} 54. a4
{[%clk 00:15:52]} {[%emt 00:01:52]} h4 {[%clk 00:08:47]} {[%emt 00:02:26]} 55.
Bd3 {[%clk 00:12:00]} {[%emt 00:04:22]} Rh3 {[%clk 00:06:26]} {[%emt 00:02:50]}
56. e4 {[%clk 00:11:56]} {[%emt 00:00:33]} Ke7 {[%clk 00:06:15]} {[%emt
00:00:42]} 57. Kc4 {[%clk 00:12:06]} {[%emt 00:00:20]} Kd8 {[%clk 00:06:23]}
{[%emt 00:00:22]} 58. d5 {[%clk 00:11:51]} {[%emt 00:00:44]} exd5+ {[%clk
00:06:09]} {[%emt 00:00:45]} 59. exd5 {[%clk 00:12:16]} {[%emt 00:00:05]} b5+
{[%clk 00:03:58]} {[%emt 00:02:40]} 60. axb5 {[%clk 00:12:37]} {[%emt
00:00:09]} Bxb5+ {[%clk 00:04:20]} {[%emt 00:00:09]} 61. Kxb5 {[%clk 00:12:54]}
{[%emt 00:00:13]} Rxd3 {[%clk 00:04:47]} {[%emt 00:00:03]} 62. Kc4 {[%clk
00:12:50]} {[%emt 00:00:34]} Rh3 {[%clk 00:05:11]} {[%emt 00:00:06]} 63. Rh7
{[%clk 00:13:08]} {[%emt 00:00:11]} Rh1 {[%clk 00:05:19]} {[%emt 00:00:23]} 64.
Kc5 {[%clk 00:13:17]} {[%emt 00:00:21]} h3 {[%clk 00:05:28]} {[%emt 00:00:21]}
65. Kb6 {[%clk 00:12:01]} {[%emt 00:01:45]} h2 {[%clk 00:05:09]} {[%emt
00:00:50]} 66. b4 {[%clk 00:12:10]} {[%emt 00:00:22]} Rd1 {[%clk 00:03:45]}
{[%emt 00:01:53]} 67. Rxh2 {[%clk 00:12:17]} {[%emt 00:00:22]} Rxd5 {[%clk
00:04:13]} {[%emt 00:00:03]} 68. Kc6 {[%clk 00:12:13]} {[%emt 00:00:34]} Rd1
{[%clk 00:03:57]} {[%emt 00:00:46]} 69. Rh8+ {[%clk 00:12:35]} {[%emt
00:00:08]} Ke7 {[%clk 00:04:23]} {[%emt 00:00:04]} 70. b5 {[%clk 00:12:43]}
{[%emt 00:00:21]} Rc1+ {[%clk 00:04:42]} {[%emt 00:00:12]} 71. Kb7 {[%clk
00:12:54]} {[%emt 00:00:19]} Kd7 {[%clk 00:04:57]} {[%emt 00:00:14]} 72. b6
{[%clk 00:13:16]} {[%emt 00:00:09]} Rb1 {[%clk 00:04:29]} {[%emt 00:00:56]} 73.
Rh6 {[%clk 00:13:02]} {[%emt 00:00:45]} Rc1 {[%clk 00:04:40]} {[%emt 00:00:17]}
74. Rh7 {[%clk 00:13:29]} {[%emt 00:00:06]} Kd8 {[%clk 00:05:04]} {[%emt
00:00:06]} 75. Rh8+ {[%clk 00:13:45]} {[%emt 00:00:14]} Kd7 {[%clk 00:05:30]}
{[%emt 00:00:05]} 76. Kb8 {[%clk 00:13:57]} {[%emt 00:00:16]} Rc2 {[%clk
00:05:23]} {[%emt 00:00:38]} 77. b7 {[%clk 00:14:17]} {[%emt 00:00:09]} Rc1
{[%clk 00:05:32]} {[%emt 00:00:22]} 78. Rc8 {[%clk 00:14:23]} {[%emt 00:00:25]}
Rb1 {[%clk 00:05:06]} {[%emt 00:00:54]} 79. Rc2 {[%clk 00:14:27]} {[%emt
00:00:27]} Ra1 {[%clk 00:04:13]} {[%emt 00:01:23]} 80. Rd2+ {[%clk 00:14:37]}
{[%emt 00:00:19]} Ke7 {[%clk 00:04:16]} {[%emt 00:00:27]} 81. Rd4 {[%clk
00:14:58]} {[%emt 00:00:09]} Ke6 {[%clk 00:03:45]} {[%emt 00:01:02]} 82. Kc7
{[%clk 00:15:07]} {[%emt 00:00:21]} Rc1+ {[%clk 00:03:59]} {[%emt 00:00:15]} 83.
Kb6 {[%clk 00:15:20]} {[%emt 00:00:18]} Rb1+ {[%clk 00:03:59]} {[%emt
00:00:30]} 84. Kc6 {[%clk 00:15:25]} {[%emt 00:00:24]} Ke7 {[%clk 00:04:01]}
{[%emt 00:00:28]} 85. Rd5 {[%clk 00:15:30]} {[%emt 00:00:25]} 1-0

[Event "Polofinale MCR junioru 2023"]
[Site "Czech Republic"]
[Date "2023.11.13"]
[Round "3.12"]
[White "Pavlis, Matej"]
[Black "Lihotsky, Lukas"]
[Result "1/2-1/2"]
[TimeControl "90 min per 40 moves + 15 min + 30 sec / move from move 1"]
[WhiteFideId "23735767"]
[BlackFideId "23727004"]
[WhiteElo "1974"]
[BlackElo "2100"]

1. Nf3 {[%clk 01:30:58]} {[%emt 00:00:01]} d5 {[%clk 01:30:51]} {[%emt
00:00:09]} 2. g3 {[%clk 01:31:22]} {[%emt 00:00:06]} Nd7 {[%clk 01:30:57]}
{[%emt 00:00:24]} 3. d4 {[%clk 01:30:49]} {[%emt 00:01:03]} Nb6 {[%clk
01:31:22]} {[%emt 00:00:05]} 4. Bg2 {[%clk 01:30:17]} {[%emt 00:01:02]} Bf5
{[%clk 01:31:38]} {[%emt 00:00:15]} 5. Nbd2 {[%clk 01:25:46]} {[%emt 00:05:00]}
e6 {[%clk 01:31:42]} {[%emt 00:00:26]} 6. b3 {[%clk 01:25:08]} {[%emt
00:01:09]} Be7 {[%clk 01:31:17]} {[%emt 00:00:55]} 7. Bb2 {[%clk 01:25:28]}
{[%emt 00:00:10]} Nf6 {[%clk 01:30:40]} {[%emt 00:01:07]} 8. O-O {[%clk
01:24:35]} {[%emt 00:01:22]} O-O {[%clk 01:31:03]} {[%emt 00:00:07]} 9. Rc1
{[%clk 01:21:36]} {[%emt 00:03:29]} Re8 {[%clk 01:26:35]} {[%emt 00:04:58]} 10.
c4 {[%clk 01:21:32]} {[%emt 00:00:34]} c6 {[%clk 01:26:41]} {[%emt 00:00:24]}
11. Ne5 {[%clk 01:17:03]} {[%emt 00:04:59]} Nbd7 {[%clk 01:24:38]} {[%emt
00:02:33]} 12. Nxd7 {[%clk 00:53:12]} {[%emt 00:24:21]} Nxd7 {[%clk 01:15:08]}
{[%emt 00:10:00]} 13. e4 {[%clk 00:52:38]} {[%emt 00:01:04]} dxe4 {[%clk
01:14:56]} {[%emt 00:00:42]} 14. Nxe4 {[%clk 00:53:03]} {[%emt 00:00:05]} Nf6
{[%clk 01:09:30]} {[%emt 00:05:55]} 15. Nc3 {[%clk 00:50:06]} {[%emt 00:03:28]}
Rc8 {[%clk 00:55:44]} {[%emt 00:14:17]} 16. Re1 {[%clk 00:48:24]} {[%emt
00:02:12]} Bf8 {[%clk 00:45:52]} {[%emt 00:10:21]} 17. h3 {[%clk 00:40:55]}
{[%emt 00:07:58]} h6 {[%clk 00:44:51]} {[%emt 00:01:32]} 18. Qd2 {[%clk
00:34:17]} {[%emt 00:07:07]} Qd7 {[%clk 00:43:34]} {[%emt 00:01:48]} 19. Rcd1
{[%clk 00:34:08]} {[%emt 00:00:39]} Red8 {[%clk 00:40:22]} {[%emt 00:03:42]} 20.
Qe3 {[%clk 00:32:26]} {[%emt 00:02:12]} Qc7 {[%clk 00:38:28]} {[%emt 00:02:24]}
21. Qf3 {[%clk 00:31:05]} {[%emt 00:01:50]} Bg6 {[%clk 00:35:34]} {[%emt
00:03:25]} 22. Rd2 {[%clk 00:26:59]} {[%emt 00:04:36]} Rd7 {[%clk 00:30:51]}
{[%emt 00:05:13]} 23. Red1 {[%clk 00:24:46]} {[%emt 00:02:42]} Rcd8 {[%clk
00:30:09]} {[%emt 00:01:12]} 24. Qe2 {[%clk 00:25:10]} {[%emt 00:00:07]} Bh5
{[%clk 00:27:34]} {[%emt 00:03:05]} 25. g4 {[%clk 00:25:29]} {[%emt 00:00:12]}
Bg6 {[%clk 00:28:00]} {[%emt 00:00:04]} 26. d5 {[%clk 00:23:17]} {[%emt
00:02:42]} exd5 {[%clk 00:24:31]} {[%emt 00:03:58]} 27. cxd5 {[%clk 00:23:19]}
{[%emt 00:00:28]} Nxd5 {[%clk 00:21:00]} {[%emt 00:04:01]} 28. Nxd5 {[%clk
00:12:43]} {[%emt 00:11:06]} cxd5 {[%clk 00:20:39]} {[%emt 00:00:51]} 29. Rxd5
{[%clk 00:13:04]} {[%emt 00:00:10]} Rxd5 {[%clk 00:17:07]} {[%emt 00:04:02]} 30.
Rxd5 {[%clk 00:09:38]} {[%emt 00:03:56]} Rxd5 {[%clk 00:15:25]} {[%emt
00:02:11]} 31. Bxd5 {[%clk 00:10:07]} {[%emt 00:00:02]} b6 {[%clk 00:15:13]}
{[%emt 00:00:41]} 32. Kg2 {[%clk 00:06:59]} {[%emt 00:03:38]} Qc5 {[%clk
00:08:31]} {[%emt 00:07:12]} 33. Qe5 {[%clk 00:05:52]} {[%emt 00:01:36]} Qc2
{[%clk 00:05:40]} {[%emt 00:03:21]} 34. h4 {[%clk 00:05:52]} {[%emt 00:00:31]}
Qd1 {[%clk 00:05:40]} {[%emt 00:00:30]} 35. Bf3 {[%clk 00:05:18]} {[%emt
00:01:03]} Qd6 {[%clk 00:06:03]} {[%emt 00:00:08]} 36. Bd5 {[%clk 00:05:14]}
{[%emt 00:00:33]} Bb1 {[%clk 00:03:30]} {[%emt 00:03:04]} 37. a4 {[%clk
00:05:39]} {[%emt 00:00:05]} Qg6 {[%clk 00:02:03]} {[%emt 00:01:56]} 38. Qf4
{[%clk 00:04:20]} {[%emt 00:01:49]} Bd6 {[%clk 00:01:08]} {[%emt 00:01:26]} 39.
Qf3 {[%clk 00:04:47]} {[%emt 00:00:02]} h5 {[%clk 00:00:51]} {[%emt 00:00:48]}
40. g5 {[%clk 00:05:02]} {[%emt 00:00:15]} Bf5 {[%clk 00:00:36]} {[%emt
00:00:46]} 41. Qe3 {[%clk 00:00:59]} {[%emt 00:04:30]} Kh7 {[%clk 00:13:46]}
{[%emt 00:02:52]} 42. Be5 {[%clk 00:11:35]} {[%emt 00:05:55]} Bc5 {[%clk
00:13:27]} {[%emt 00:00:49]} 43. Bd4 {[%clk 00:11:29]} {[%emt 00:00:37]} Qd6
{[%clk 00:07:06]} {[%emt 00:06:49]} 44. Qe5 {[%clk 00:11:17]} {[%emt 00:00:42]}
Qxe5 {[%clk 00:07:17]} {[%emt 00:00:20]} 45. Bxe5 {[%clk 00:11:45]} {[%emt
00:00:02]} Kg6 {[%clk 00:06:59]} {[%emt 00:00:47]} 46. Kf3 {[%clk 00:10:00]}
{[%emt 00:02:14]} f6 {[%clk 00:06:07]} {[%emt 00:01:24]} 47. gxf6 {[%clk
00:10:19]} {[%emt 00:00:10]} gxf6 {[%clk 00:06:32]} {[%emt 00:00:05]} 48. Bg3
{[%clk 00:10:39]} {[%emt 00:00:10]} Bg4+ {[%clk 00:04:44]} {[%emt 00:02:18]} 49.
Ke4 {[%clk 00:07:09]} {[%emt 00:04:00]} Bf5+ {[%clk 00:05:10]} {[%emt
00:00:05]} 50. Kf3 {[%clk 00:07:26]} {[%emt 00:00:12]} Bg4+ {[%clk 00:05:30]}
{[%emt 00:00:11]} 51. Ke4 {[%clk 00:04:41]} {[%emt 00:03:15]} Bf5+ {[%clk
00:05:06]} {[%emt 00:00:54]} 52. Kf4 {[%clk 00:04:21]} {[%emt 00:00:50]} Bd6+
{[%clk 00:04:32]} {[%emt 00:00:33]} 53. Ke3 {[%clk 00:04:46]} {[%emt 00:00:06]}
Bc5+ {[%clk 00:05:27]} {[%emt 00:00:05]} 54. Kf4 {[%clk 00:03:25]} {[%emt
00:01:50]} Bd6+ {[%clk 00:05:39]} {[%emt 00:00:19]} 55. Kf3 {[%clk 00:03:39]}
{[%emt 00:00:14]} Bg4+ {[%clk 00:04:39]} {[%emt 00:01:32]} 56. Ke3 {[%clk
00:03:16]} {[%emt 00:00:52]} Bc5+ {[%clk 00:04:33]} {[%emt 00:00:36]} 57. Kd3
{[%clk 00:03:40]} {[%emt 00:00:06]} Bd7 {[%clk 00:03:40]} {[%emt 00:01:24]} 58.
Kc4 {[%clk 00:03:30]} {[%emt 00:00:40]} a5 {[%clk 00:03:56]} {[%emt 00:00:14]}
59. f3 {[%clk 00:03:28]} {[%emt 00:00:31]} f5 {[%clk 00:02:14]} {[%emt
00:02:12]} 60. Be1 {[%clk 00:03:41]} {[%emt 00:00:18]} Be3 {[%clk 00:01:50]}
{[%emt 00:00:53]} 61. Bb7 {[%clk 00:03:26]} {[%emt 00:00:43]} Be6+ {[%clk
00:01:58]} {[%emt 00:00:24]} 62. Bd5 {[%clk 00:03:49]} {[%emt 00:00:08]} Bd7
{[%clk 00:02:23]} {[%emt 00:00:04]} 63. Kd3 {[%clk 00:02:49]} {[%emt 00:01:30]}
Bc5 {[%clk 00:02:10]} {[%emt 00:00:43]} 64. Bd2 {[%clk 00:02:29]} {[%emt
00:00:48]} Be7 {[%clk 00:01:52]} {[%emt 00:00:50]} 65. Be1 {[%clk 00:02:24]}
{[%emt 00:00:36]} Bc5 {[%clk 00:02:04]} {[%emt 00:00:18]} 66. Kc4 {[%clk
00:01:06]} {[%emt 00:01:48]} 1/2-1/2

[Event "Polofinale MCR junioru 2023"]
[Site "Czech Republic"]
[Date "2023.11.13"]
[Round "3.13"]
[White "Trojan, Matyas"]
[Black "Ocelak, Jakub"]
[Result "0-1"]
[TimeControl "90 min per 40 moves + 15 min + 30 sec / move from move 1"]
[WhiteFideId "23710764"]
[BlackFideId "23707933"]
[WhiteElo "1957"]
[BlackElo "2238"]

1. e4 {[%clk 01:30:57]} {[%emt 00:00:02]} e5 {[%clk 01:30:44]} {[%emt
00:00:16]} 2. Nf3 {[%clk 01:31:20]} {[%emt 00:00:07]} Nc6 {[%clk 01:31:12]}
{[%emt 00:00:02]} 3. Bc4 {[%clk 01:31:41]} {[%emt 00:00:09]} Nf6 {[%clk
01:31:40]} {[%emt 00:00:02]} 4. d3 {[%clk 01:32:03]} {[%emt 00:00:08]} h6
{[%clk 01:32:06]} {[%emt 00:00:04]} 5. c3 {[%clk 01:31:55]} {[%emt 00:00:38]}
d6 {[%clk 01:32:28]} {[%emt 00:00:08]} 6. h3 {[%clk 01:31:58]} {[%emt
00:00:27]} g6 {[%clk 01:26:36]} {[%emt 00:06:23]} 7. Nbd2 {[%clk 01:27:11]}
{[%emt 00:05:16]} Bg7 {[%clk 01:26:47]} {[%emt 00:00:19]} 8. a4 {[%clk
01:26:35]} {[%emt 00:01:07]} O-O {[%clk 01:23:23]} {[%emt 00:03:53]} 9. Nf1
{[%clk 01:23:58]} {[%emt 00:03:08]} d5 {[%clk 01:20:30]} {[%emt 00:03:23]} 10.
exd5 {[%clk 01:22:30]} {[%emt 00:01:57]} Nxd5 {[%clk 01:20:47]} {[%emt
00:00:13]} 11. Ng3 {[%clk 01:22:05]} {[%emt 00:00:55]} Nf4 {[%clk 01:16:20]}
{[%emt 00:04:57]} 12. Bxf4 {[%clk 01:18:24]} {[%emt 00:04:11]} exf4 {[%clk
01:16:48]} {[%emt 00:00:02]} 13. Ne2 {[%clk 01:18:08]} {[%emt 00:00:46]} Qf6
{[%clk 01:07:47]} {[%emt 00:09:32]} 14. Qd2 {[%clk 01:16:17]} {[%emt 00:02:20]}
g5 {[%clk 01:07:50]} {[%emt 00:00:27]} 15. d4 {[%clk 01:15:28]} {[%emt
00:01:19]} Bf5 {[%clk 00:58:52]} {[%emt 00:09:28]} 16. Bd3 {[%clk 01:07:18]}
{[%emt 00:08:40]} Rae8 {[%clk 00:48:43]} {[%emt 00:10:39]} 17. b4 {[%clk
01:00:25]} {[%emt 00:07:23]} Qg6 {[%clk 00:46:38]} {[%emt 00:02:36]} 18. Bxf5
{[%clk 00:58:50]} {[%emt 00:02:05]} Qxf5 {[%clk 00:46:45]} {[%emt 00:00:23]} 19.
O-O {[%clk 00:56:13]} {[%emt 00:03:06]} h5 {[%clk 00:43:03]} {[%emt 00:04:13]}
20. Nh2 {[%clk 00:55:05]} {[%emt 00:01:37]} Bh6 {[%clk 00:40:06]} {[%emt
00:03:27]} 21. Rae1 {[%clk 00:42:38]} {[%emt 00:12:58]} Ne7 {[%clk 00:19:20]}
{[%emt 00:21:16]} 22. Qd1 {[%clk 00:35:42]} {[%emt 00:07:25]} Nd5 {[%clk
00:17:56]} {[%emt 00:01:54]} 23. g4 {[%clk 00:27:36]} {[%emt 00:08:36]} hxg4
{[%clk 00:17:06]} {[%emt 00:01:20]} 24. Nxg4 {[%clk 00:26:52]} {[%emt
00:01:14]} Bg7 {[%clk 00:17:22]} {[%emt 00:00:14]} 25. Qb3 {[%clk 00:25:43]}
{[%emt 00:01:39]} Nf6 {[%clk 00:14:45]} {[%emt 00:03:08]} 26. f3 {[%clk
00:24:52]} {[%emt 00:01:21]} Re6 {[%clk 00:06:10]} {[%emt 00:09:06]} 27. Kf2
{[%clk 00:21:03]} {[%emt 00:04:18]} Qh7 {[%clk 00:04:47]} {[%emt 00:01:52]} 28.
Nxf6+ {[%clk 00:17:50]} {[%emt 00:03:43]} Bxf6 {[%clk 00:05:04]} {[%emt
00:00:14]} 29. Rg1 {[%clk 00:10:24]} {[%emt 00:07:56]} Rfe8 {[%clk 00:04:21]}
{[%emt 00:01:13]} 30. Qc4 {[%clk 00:09:00]} {[%emt 00:01:53]} Qxh3 {[%clk
00:03:23]} {[%emt 00:01:29]} 31. d5 {[%clk 00:02:13]} {[%emt 00:07:16]} Qh2+
{[%clk 00:02:00]} {[%emt 00:01:53]} 32. Rg2 {[%clk 00:01:23]} {[%emt 00:01:20]}
Qh4+ {[%clk 00:02:28]} {[%emt 00:00:02]} 33. Kf1 {[%clk 00:01:40]} {[%emt
00:00:13]} Re3 {[%clk 00:02:43]} {[%emt 00:00:16]} 34. Rd1 {[%clk 00:00:50]}
{[%emt 00:01:19]} Qh1+ {[%clk 00:02:05]} {[%emt 00:01:08]} 35. Ng1 {[%clk
00:00:39]} {[%emt 00:00:41]} Rxf3+ {[%clk 00:02:11]} {[%emt 00:00:25]} 36. Rf2
{[%clk 00:01:05]} {[%emt 00:00:03]} Rg3 {[%clk 00:02:15]} {[%emt 00:00:26]} 0-1